[Event "Open NK Rapid 2025"]
[Site "Helmond, Netherlands"]
[Date "2025.05.03"]
[Round "7.22"]
[White "Winter, Sven"]
[Black "Ritzerveld, Noah"]
[Result "1/2-1/2"]
[TimeControl "15+5"]
[WhiteFideId "1092375"]
[BlackFideId "1085760"]
[WhiteElo "1869"]
[BlackElo "2053"]

1. e4 {[%clk 00:15:09]} {[%emt 00:00:02]} e5 {[%clk 00:15:09]} {[%emt
00:00:01]} 2. Nc3 {[%clk 00:15:13]} {[%emt 00:00:01]} Nf6 {[%clk 00:15:13]}
{[%emt 00:00:02]} 3. f4 {[%clk 00:15:16]} d5 {[%clk 00:15:17]} {[%emt
00:00:01]} 4. fxe5 {[%clk 00:15:20]} Nxe4 {[%clk 00:15:21]} {[%emt 00:00:01]} 5.
Qf3 {[%clk 00:15:24]} {[%emt 00:00:01]} Nc6 {[%clk 00:15:20]} {[%emt 00:00:06]}
6. Bb5 {[%clk 00:15:17]} {[%emt 00:00:12]} Nxc3 {[%clk 00:15:03]} {[%emt
00:00:22]} 7. dxc3 {[%clk 00:15:14]} {[%emt 00:00:08]} Qh4+ {[%clk 00:14:41]}
{[%emt 00:00:27]} 8. g3 {[%clk 00:15:14]} {[%emt 00:00:05]} Qe4+ {[%clk
00:14:40]} {[%emt 00:00:05]} 9. Qxe4 {[%clk 00:14:56]} {[%emt 00:00:23]} dxe4
{[%clk 00:14:44]} 10. Bf4 {[%clk 00:14:53]} {[%emt 00:00:09]} Bd7 {[%clk
00:13:44]} {[%emt 00:01:05]} 11. O-O-O {[%clk 00:14:38]} {[%emt 00:00:19]}
O-O-O {[%clk 00:13:07]} {[%emt 00:00:43]} 12. Bc4 {[%clk 00:13:58]} {[%emt
00:00:45]} Be7 {[%clk 00:11:31]} {[%emt 00:01:41]} 13. Bxf7 {[%clk 00:12:47]}
{[%emt 00:01:16]} Bg4 {[%clk 00:11:31]} {[%emt 00:00:05]} 14. Re1 {[%clk
00:12:32]} {[%emt 00:00:19]} g5 {[%clk 00:11:18]} {[%emt 00:00:19]} 15. Bd2
{[%clk 00:12:11]} {[%emt 00:00:26]} Rhf8 {[%clk 00:09:18]} {[%emt 00:02:05]} 16.
e6 {[%clk 00:10:31]} {[%emt 00:01:45]} Ne5 {[%clk 00:08:24]} {[%emt 00:00:59]}
17. Rxe4 {[%clk 00:09:19]} {[%emt 00:01:17]} Nxf7 {[%clk 00:08:26]} {[%emt
00:00:02]} 18. exf7 {[%clk 00:09:04]} {[%emt 00:00:21]} Rxf7 {[%emt 00:00:12]}
19. Ne2 {[%clk 00:09:05]} Bf3 {[%clk 00:06:35]} {[%emt 00:01:52]} 20. Rf1
{[%clk 00:09:07]} {[%emt 00:00:02]} Rdf8 {[%clk 00:06:33]} {[%emt 00:00:07]} 21.
Re3 {[%clk 00:08:17]} {[%emt 00:00:55]} Bd5 {[%clk 00:05:22]} {[%emt 00:01:16]}
22. Rxf7 {[%clk 00:07:08]} {[%emt 00:01:15]} Rxf7 {[%clk 00:05:24]} {[%emt
00:00:02]} 23. Nd4 {[%clk 00:06:12]} {[%emt 00:01:00]} c5 {[%clk 00:05:14]}
{[%emt 00:00:16]} 24. Nf5 {[%clk 00:05:48]} {[%emt 00:00:29]} Rxf5 {[%clk
00:02:56]} {[%emt 00:02:23]} 25. Rxe7 {[%clk 00:05:50]} {[%emt 00:00:02]} Rf2
{[%clk 00:02:45]} {[%emt 00:00:16]} 26. Re5 {[%clk 00:05:13]} {[%emt 00:00:42]}
Bc6 {[%clk 00:02:35]} {[%emt 00:00:15]} 27. Bxg5 {[%clk 00:04:32]} {[%emt
00:00:45]} Rxh2 {[%clk 00:02:38]} {[%emt 00:00:02]} 28. Rxc5 {[%clk 00:04:29]}
{[%emt 00:00:08]} Kd7 {[%clk 00:02:42]} {[%emt 00:00:02]} 29. Re5 {[%clk
00:04:18]} {[%emt 00:00:15]} Kd6 {[%clk 00:02:15]} {[%emt 00:00:31]} 30. Bf4
{[%clk 00:04:07]} {[%emt 00:00:16]} Kd7 {[%clk 00:02:20]} 31. b3 {[%clk
00:03:36]} {[%emt 00:00:36]} b5 {[%clk 00:02:08]} {[%emt 00:00:18]} 32. Kb2
{[%clk 00:02:23]} {[%emt 00:01:17]} Rg2 {[%clk 00:01:52]} {[%emt 00:00:20]} 33.
Re3 {[%clk 00:02:10]} {[%emt 00:00:19]} Bd5 {[%clk 00:01:53]} {[%emt 00:00:04]}
34. Re5 {[%clk 00:01:42]} {[%emt 00:00:33]} Kc6 {[%clk 00:01:18]} {[%emt
00:00:40]} 35. Re7 {[%clk 00:01:33]} {[%emt 00:00:13]} a5 {[%clk 00:01:22]}
{[%emt 00:00:03]} 36. Rc7+ {[%clk 00:00:51]} {[%emt 00:00:46]} Kb6 {[%clk
00:01:25]} {[%emt 00:00:02]} 37. Re7 {[%clk 00:00:53]} {[%emt 00:00:03]} Bf3
{[%clk 00:00:42]} {[%emt 00:00:48]} 38. Re6+ {[%clk 00:00:36]} {[%emt
00:00:21]} Kb7 {[%clk 00:00:38]} {[%emt 00:00:09]} 39. Kc1 {[%clk 00:00:24]}
{[%emt 00:00:16]} Rg1+ {[%clk 00:00:35]} {[%emt 00:00:10]} 40. Kb2 {[%clk
00:00:19]} {[%emt 00:00:10]} Bd1 {[%clk 00:00:30]} {[%emt 00:00:08]} 41. Rd6
{[%clk 00:00:18]} {[%emt 00:00:07]} Bg4 {[%clk 00:00:32]} {[%emt 00:00:04]} 42.
Rd2 {[%clk 00:00:19]} {[%emt 00:00:03]} Re1 {[%clk 00:00:34]} {[%emt 00:00:04]}
43. Rh2 {[%clk 00:00:21]} {[%emt 00:00:03]} Bf5 {[%clk 00:00:29]} {[%emt
00:00:10]} 44. a3 {[%clk 00:00:18]} {[%emt 00:00:08]} Bg6 {[%clk 00:00:31]}
{[%emt 00:00:03]} 45. Bd2 {[%clk 00:00:18]} {[%emt 00:00:05]} Rf1 {[%clk
00:00:33]} {[%emt 00:00:03]} 46. Bf4 {[%clk 00:00:21]} {[%emt 00:00:02]} Kc6
{[%clk 00:00:34]} {[%emt 00:00:04]} 47. Rd2 {[%clk 00:00:23]} {[%emt 00:00:03]}
Re1 {[%clk 00:00:32]} {[%emt 00:00:07]} 48. c4 {[%clk 00:00:20]} {[%emt
00:00:08]} bxc4 {[%clk 00:00:34]} {[%emt 00:00:03]} 49. bxc4 {[%clk 00:00:22]}
{[%emt 00:00:03]} Rf1 {[%clk 00:00:37]} {[%emt 00:00:02]} 50. Kc3 {[%clk
00:00:18]} {[%emt 00:00:10]} Rf3+ {[%clk 00:00:37]} {[%emt 00:00:04]} 51. Kb2
{[%clk 00:00:17]} {[%emt 00:00:06]} Kc5 {[%clk 00:00:38]} {[%emt 00:00:04]} 52.
Rd5+ {[%clk 00:00:15]} {[%emt 00:00:07]} Kxc4 {[%clk 00:00:39]} {[%emt
00:00:03]} 53. Rxa5 {[%clk 00:00:13]} {[%emt 00:00:08]} Rf2 {[%clk 00:00:38]}
{[%emt 00:00:03]} 54. Ra4+ {[%clk 00:00:16]} {[%emt 00:00:05]} Kd5 {[%clk
00:00:20]} {[%emt 00:00:23]} 55. Ra5+ {[%clk 00:00:13]} {[%emt 00:00:09]} Kc6
{[%clk 00:00:21]} 56. Ra8 {[%clk 00:00:11]} {[%emt 00:00:08]} Rxc2+ {[%clk
00:00:23]} {[%emt 00:00:04]} 57. Kb3 {[%clk 00:00:14]} {[%emt 00:00:02]} Re2
{[%clk 00:00:25]} {[%emt 00:00:01]} 58. a4 {[%clk 00:00:14]} {[%emt 00:00:06]}
Kb6 {[%clk 00:00:27]} {[%emt 00:00:03]} 59. a5+ {[%clk 00:00:12]} {[%emt
00:00:08]} Kb5 {[%clk 00:00:30]} {[%emt 00:00:01]} 60. a6 {[%clk 00:00:09]}
{[%emt 00:00:09]} Be4 {[%clk 00:00:25]} {[%emt 00:00:09]} 61. Rb8+ {[%clk
00:00:07]} {[%emt 00:00:07]} Kxa6 {[%clk 00:00:25]} {[%emt 00:00:06]} 62. Kc3
{[%clk 00:00:10]} {[%emt 00:00:02]} Bg6 {[%clk 00:00:24]} {[%emt 00:00:06]} 63.
Kd4 {[%clk 00:00:12]} {[%emt 00:00:02]} Re1 {[%clk 00:00:18]} {[%emt 00:00:11]}
64. Rb2 {[%clk 00:00:13]} {[%emt 00:00:05]} Rd1+ {[%clk 00:00:20]} {[%emt
00:00:03]} 65. Ke5 {[%clk 00:00:14]} {[%emt 00:00:03]} Rd3 {[%clk 00:00:16]}
{[%emt 00:00:09]} 66. Kf6 {[%clk 00:00:15]} {[%emt 00:00:04]} Rd7 {[%clk
00:00:16]} {[%emt 00:00:05]} 67. Kg5 {[%clk 00:00:16]} {[%emt 00:00:04]} Bd3
{[%clk 00:00:18]} {[%emt 00:00:02]} 68. Rd2 {[%clk 00:00:18]} {[%emt 00:00:05]}
Kb5 {[%clk 00:00:22]} 69. Be5 {[%clk 00:00:19]} {[%emt 00:00:04]} Kc4 {[%clk
00:00:26]} {[%emt 00:00:01]} 70. Kf4 {[%clk 00:00:21]} {[%emt 00:00:03]} Rd5
{[%clk 00:00:22]} {[%emt 00:00:07]} 71. Rd1 {[%clk 00:00:16]} {[%emt 00:00:10]}
Rd8 {[%clk 00:00:22]} {[%emt 00:00:03]} 72. Rc1+ {[%clk 00:00:15]} {[%emt
00:00:10]} Kd5 {[%clk 00:00:13]} {[%emt 00:00:12]} 73. Bb2 {[%clk 00:00:15]}
{[%emt 00:00:07]} Rf8+ {[%clk 00:00:15]} {[%emt 00:00:03]} 74. Kg5 {[%clk
00:00:16]} {[%emt 00:00:03]} Rf2 {[%clk 00:00:13]} {[%emt 00:00:09]} 75. Bg7
{[%clk 00:00:08]} {[%emt 00:00:12]} Ke4 {[%clk 00:00:16]} {[%emt 00:00:02]} 76.
Kh4 {[%clk 00:00:09]} {[%emt 00:00:03]} Kf5 {[%clk 00:00:18]} {[%emt 00:00:03]}
77. Rc5+ {[%clk 00:00:12]} {[%emt 00:00:03]} Kg6 {[%clk 00:00:21]} {[%emt
00:00:02]} 78. Be5 {[%clk 00:00:12]} {[%emt 00:00:04]} Be2 {[%clk 00:00:23]}
{[%emt 00:00:03]} 79. Rc6+ {[%clk 00:00:13]} {[%emt 00:00:05]} Kf7 {[%clk
00:00:19]} {[%emt 00:00:08]} 80. Kg5 {[%clk 00:00:14]} {[%emt 00:00:04]} Ke7
{[%clk 00:00:20]} {[%emt 00:00:04]} 81. Bf4 {[%clk 00:00:16]} {[%emt 00:00:05]}
Bd3 {[%clk 00:00:17]} {[%emt 00:00:06]} 82. Rc7+ {[%clk 00:00:18]} {[%emt
00:00:04]} Ke6 {[%clk 00:00:20]} 83. Rc6+ {[%clk 00:00:20]} {[%emt 00:00:05]}
Kd5 {[%clk 00:00:17]} {[%emt 00:00:06]} 84. Rd6+ {[%clk 00:00:22]} {[%emt
00:00:04]} Kc4 {[%clk 00:00:20]} {[%emt 00:00:02]} 85. Rc6+ {[%clk 00:00:24]}
{[%emt 00:00:02]} Kd4 {[%clk 00:00:23]} {[%emt 00:00:02]} 86. Rd6+ {[%clk
00:00:28]} {[%emt 00:00:02]} Kc3 {[%clk 00:00:26]} {[%emt 00:00:01]} 87. Rc6+
{[%clk 00:00:30]} {[%emt 00:00:04]} Bc4 {[%clk 00:00:30]} {[%emt 00:00:01]} 88.
Rc7 {[%clk 00:00:33]} {[%emt 00:00:02]} Rh2 {[%clk 00:00:27]} {[%emt 00:00:07]}
89. Rc8 {[%clk 00:00:26]} {[%emt 00:00:13]} Kd4 {[%clk 00:00:26]} {[%emt
00:00:05]} 90. Rd8+ {[%clk 00:00:28]} {[%emt 00:00:03]} Bd5 {[%clk 00:00:27]}
{[%emt 00:00:04]} 91. Re8 {[%clk 00:00:27]} {[%emt 00:00:06]} Ra2 {[%clk
00:00:28]} {[%emt 00:00:04]} 92. Rd8 {[%clk 00:00:26]} {[%emt 00:00:07]} Ke4
{[%clk 00:00:26]} {[%emt 00:00:05]} 93. Re8+ {[%clk 00:00:28]} {[%emt
00:00:04]} Kf3 {[%clk 00:00:29]} {[%emt 00:00:02]} 94. Re3+ {[%clk 00:00:28]}
{[%emt 00:00:05]} Kg2 {[%clk 00:00:31]} {[%emt 00:00:03]} 95. Re7 {[%clk
00:00:27]} {[%emt 00:00:06]} Ra5 {[%clk 00:00:29]} {[%emt 00:00:08]} 96. Kf6
{[%clk 00:00:17]} {[%emt 00:00:14]} h5 {[%clk 00:00:28]} {[%emt 00:00:05]} 97.
Re2+ {[%clk 00:00:16]} {[%emt 00:00:07]} Kf3 {[%clk 00:00:28]} {[%emt
00:00:05]} 98. Re3+ {[%clk 00:00:19]} {[%emt 00:00:05]} Kg4 {[%clk 00:00:32]}
99. Re5 {[%clk 00:00:19]} {[%emt 00:00:03]} Ra6+ {[%clk 00:00:36]} {[%emt
00:00:03]} 100. Ke7 {[%clk 00:00:18]} {[%emt 00:00:04]} Bf3 {[%clk 00:00:39]}
{[%emt 00:00:03]} 101. Rg5+ {[%clk 00:00:19]} {[%emt 00:00:03]} Kh3 {[%clk
00:00:43]} {[%emt 00:00:02]} 102. Rg8 {[%clk 00:00:19]} {[%emt 00:00:05]} Ra4
{[%clk 00:00:46]} {[%emt 00:00:02]} 103. Rh8 {[%clk 00:00:20]} {[%emt
00:00:03]} Kg2 {[%clk 00:00:48]} {[%emt 00:00:03]} 104. Kf6 {[%clk 00:00:21]}
{[%emt 00:00:05]} Ra5 {[%clk 00:00:49]} {[%emt 00:00:03]} 105. Ke6 {[%clk
00:00:14]} {[%emt 00:00:13]} Bg4+ {[%clk 00:00:51]} {[%emt 00:00:03]} 106. Kf6
{[%clk 00:00:16]} {[%emt 00:00:03]} Kf3 {[%clk 00:00:52]} {[%emt 00:00:04]} 107.
Be5 {[%clk 00:00:10]} {[%emt 00:00:12]} Ke4 {[%clk 00:00:54]} {[%emt 00:00:03]}
108. Bf4 {[%clk 00:00:11]} {[%emt 00:00:04]} Ra6+ {[%clk 00:00:57]} {[%emt
00:00:02]} 109. Kg7 {[%clk 00:00:12]} {[%emt 00:00:03]} Kf3 {[%clk 00:00:52]}
{[%emt 00:00:11]} 110. Kf7 {[%clk 00:00:09]} {[%emt 00:00:07]} Rb6 {[%clk
00:00:47]} {[%emt 00:00:11]} 111. Kg7 {[%clk 00:00:08]} {[%emt 00:00:05]} Rb1
{[%clk 00:00:45]} {[%emt 00:00:08]} 112. Kf6 {[%clk 00:00:08]} {[%emt
00:00:04]} Rh1 {[%clk 00:00:48]} {[%emt 00:00:02]} 113. Kg7 {[%clk 00:00:11]}
{[%emt 00:00:03]} h4 {[%clk 00:00:49]} {[%emt 00:00:04]} 114. Rxh4 {[%clk
00:00:13]} {[%emt 00:00:03]} Rxh4 {[%clk 00:00:53]} {[%emt 00:00:01]} 115. gxh4
{[%clk 00:00:16]} {[%emt 00:00:02]} Kxf4 {[%clk 00:00:56]} {[%emt 00:00:01]}
1/2-1/2

[Event "Open NK Rapid 2025"]
[Site "Helmond, Netherlands"]
[Date "2025.05.03"]
[Round "7.23"]
[White "Kshirsagar, Pranav"]
[Black "Van Esch, Rob"]
[Result "1-0"]
[TimeControl "15+5"]
[WhiteFideId "1084011"]
[BlackFideId "40119289"]
[WhiteElo "2049"]
[BlackElo "1860"]

1. d4 {[%clk 00:15:08]} {[%emt 00:00:02]} c5 {[%clk 00:15:05]} {[%emt
00:00:05]} 2. d5 {[%clk 00:15:10]} {[%emt 00:00:03]} e5 {[%clk 00:15:05]}
{[%emt 00:00:05]} 3. c4 {[%clk 00:13:38]} {[%emt 00:01:38]} Nf6 {[%clk
00:13:53]} {[%emt 00:01:16]} 4. Nc3 {[%clk 00:13:38]} {[%emt 00:00:05]} d6
{[%clk 00:13:30]} {[%emt 00:00:28]} 5. e4 {[%clk 00:13:41]} {[%emt 00:00:02]}
a6 {[%clk 00:13:17]} {[%emt 00:00:18]} 6. f4 {[%clk 00:13:30]} {[%emt
00:00:16]} exf4 {[%clk 00:13:14]} {[%emt 00:00:08]} 7. Bxf4 {[%clk 00:13:30]}
{[%emt 00:00:05]} g6 {[%clk 00:12:31]} {[%emt 00:00:48]} 8. Be2 {[%clk
00:13:24]} {[%emt 00:00:11]} Bg7 {[%clk 00:12:31]} {[%emt 00:00:05]} 9. Nf3
{[%clk 00:13:16]} {[%emt 00:00:13]} Bg4 {[%clk 00:12:19]} {[%emt 00:00:17]} 10.
O-O {[%clk 00:13:08]} {[%emt 00:00:12]} O-O {[%clk 00:11:54]} {[%emt 00:00:31]}
11. h3 {[%clk 00:12:24]} {[%emt 00:00:48]} Bxf3 {[%clk 00:11:55]} {[%emt
00:00:04]} 12. Bxf3 {[%clk 00:12:28]} {[%emt 00:00:02]} Ne8 {[%clk 00:11:58]}
{[%emt 00:00:02]} 13. Re1 {[%clk 00:11:37]} {[%emt 00:00:55]} Nd7 {[%clk
00:12:01]} {[%emt 00:00:03]} 14. Qd2 {[%clk 00:09:29]} {[%emt 00:02:12]} Ne5
{[%clk 00:11:56]} {[%emt 00:00:10]} 15. Be2 {[%clk 00:09:21]} {[%emt 00:00:13]}
b6 {[%clk 00:07:52]} {[%emt 00:04:09]} 16. a3 {[%clk 00:09:02]} {[%emt
00:00:25]} Rb8 {[%clk 00:07:28]} {[%emt 00:00:29]} 17. Rab1 {[%clk 00:08:57]}
{[%emt 00:00:10]} Qe7 {[%clk 00:05:55]} {[%emt 00:01:37]} 18. b4 {[%clk
00:08:41]} {[%emt 00:00:21]} Nd7 {[%clk 00:05:18]} {[%emt 00:00:43]} 19. Bf1
{[%clk 00:08:15]} {[%emt 00:00:32]} Qf6 {[%clk 00:04:07]} {[%emt 00:01:15]} 20.
Ne2 {[%clk 00:07:19]} {[%emt 00:01:00]} Nc7 {[%clk 00:03:11]} {[%emt 00:01:01]}
21. Rb3 {[%clk 00:06:34]} {[%emt 00:00:51]} Ne5 {[%clk 00:02:47]} {[%emt
00:00:29]} 22. Rc3 {[%clk 00:06:09]} {[%emt 00:00:30]} Qe7 {[%clk 00:02:41]}
{[%emt 00:00:11]} 23. Rc2 {[%clk 00:05:53]} {[%emt 00:00:22]} Nd7 {[%clk
00:02:34]} {[%emt 00:00:11]} 24. Ng3 {[%clk 00:05:19]} {[%emt 00:00:39]} b5
{[%clk 00:02:15]} {[%emt 00:00:24]} 25. bxc5 {[%clk 00:04:51]} {[%emt
00:00:33]} Nxc5 {[%clk 00:02:15]} {[%emt 00:00:05]} 26. Kh1 {[%clk 00:04:44]}
{[%emt 00:00:12]} bxc4 {[%clk 00:01:43]} {[%emt 00:00:37]} 27. Rxc4 {[%clk
00:04:45]} {[%emt 00:00:04]} Nb5 {[%clk 00:01:08]} {[%emt 00:00:38]} 28. a4
{[%clk 00:04:20]} {[%emt 00:00:32]} Na3 {[%clk 00:01:01]} {[%emt 00:00:11]} 29.
Rcc1 {[%clk 00:04:12]} {[%emt 00:00:13]} Rb2 {[%clk 00:01:00]} {[%emt
00:00:06]} 30. Qa5 {[%clk 00:03:11]} {[%emt 00:01:07]} Nb3 {[%clk 00:01:01]}
{[%emt 00:00:04]} 31. Qc7 {[%clk 00:03:07]} {[%emt 00:00:09]} Qh4 {[%clk
00:00:43]} {[%emt 00:00:22]} 32. Qxd6 {[%clk 00:02:29]} {[%emt 00:00:44]} Nxc1
{[%clk 00:00:30]} {[%emt 00:00:18]} 33. Rxc1 {[%clk 00:02:33]} {[%emt
00:00:01]} Rf2 {[%clk 00:00:00]} {[%emt 00:00:36]} 34. Be3 {[%clk 00:15:05]}
{[%emt 00:00:40]} 1-0

[Event "Open NK Rapid 2025"]
[Site "Helmond, Netherlands"]
[Date "2025.05.03"]
[Round "7.24"]
[White "Sosef, Noah"]
[Black "Van Ravensteijn, Antal"]
[Result "0-1"]
[TimeControl "15+5"]
[WhiteFideId "40107060"]
[BlackFideId "1060759"]
[WhiteElo "1835"]
[BlackElo "2048"]

1. e4 {[%clk 00:15:08]} {[%emt 00:00:02]} d5 {[%clk 00:15:06]} {[%emt
00:00:05]} 2. exd5 {[%clk 00:15:11]} {[%emt 00:00:02]} Qxd5 {[%clk 00:15:09]}
{[%emt 00:00:01]} 3. Nc3 {[%clk 00:15:15]} {[%emt 00:00:01]} Qd8 {[%clk
00:15:12]} {[%emt 00:00:01]} 4. Nf3 {[%clk 00:15:18]} {[%emt 00:00:03]} Nf6
{[%clk 00:15:16]} {[%emt 00:00:02]} 5. Bc4 {[%clk 00:15:20]} {[%emt 00:00:02]}
g6 {[%clk 00:15:18]} {[%emt 00:00:02]} 6. O-O {[%clk 00:15:22]} {[%emt
00:00:04]} Bg7 {[%clk 00:15:22]} {[%emt 00:00:01]} 7. d4 {[%clk 00:15:15]}
{[%emt 00:00:12]} O-O {[%clk 00:15:24]} {[%emt 00:00:03]} 8. Re1 {[%clk
00:15:06]} {[%emt 00:00:14]} b6 {[%clk 00:14:58]} {[%emt 00:00:32]} 9. h3
{[%clk 00:14:50]} {[%emt 00:00:20]} Bb7 {[%clk 00:14:44]} {[%emt 00:00:18]} 10.
Be3 {[%clk 00:14:45]} {[%emt 00:00:10]} e6 {[%clk 00:14:05]} {[%emt 00:00:45]}
11. Qd2 {[%clk 00:14:39]} {[%emt 00:00:11]} Bxf3 {[%clk 00:13:34]} {[%emt
00:00:36]} 12. gxf3 {[%clk 00:14:41]} {[%emt 00:00:04]} Nd5 {[%clk 00:13:01]}
{[%emt 00:00:37]} 13. Nxd5 {[%clk 00:14:28]} {[%emt 00:00:18]} exd5 {[%clk
00:13:04]} {[%emt 00:00:02]} 14. Bf1 {[%clk 00:14:32]} {[%emt 00:00:02]} Nc6
{[%clk 00:12:19]} {[%emt 00:00:50]} 15. c3 {[%clk 00:14:35]} {[%emt 00:00:02]}
Re8 {[%clk 00:12:15]} {[%emt 00:00:09]} 16. Bg2 {[%clk 00:14:31]} {[%emt
00:00:08]} Ne7 {[%clk 00:12:14]} {[%emt 00:00:07]} 17. Bg5 {[%clk 00:14:29]}
{[%emt 00:00:07]} f6 {[%clk 00:11:43]} {[%emt 00:00:35]} 18. Bh4 {[%clk
00:13:45]} {[%emt 00:00:49]} Nf5 {[%clk 00:11:26]} {[%emt 00:00:23]} 19. Bg3
{[%clk 00:13:48]} {[%emt 00:00:01]} Qd7 {[%clk 00:11:14]} {[%emt 00:00:18]} 20.
Qf4 {[%clk 00:13:08]} {[%emt 00:00:43]} c6 {[%clk 00:10:29]} {[%emt 00:00:52]}
21. Rad1 {[%clk 00:12:41]} {[%emt 00:00:32]} Bh6 {[%clk 00:10:11]} {[%emt
00:00:23]} 22. Qc7 {[%clk 00:12:31]} {[%emt 00:00:16]} Qxc7 {[%clk 00:10:02]}
{[%emt 00:00:14]} 23. Bxc7 {[%clk 00:12:34]} {[%emt 00:00:01]} Kf7 {[%emt
00:00:22]} 24. Bg3 {[%clk 00:12:17]} Rxe1+ {[%clk 00:08:45]} {[%emt 00:01:28]}
25. Rxe1 {[%clk 00:12:20]} {[%emt 00:00:01]} Re8 {[%clk 00:08:48]} {[%emt
00:00:03]} 26. Rxe8 {[%clk 00:11:45]} {[%emt 00:00:39]} Kxe8 {[%clk 00:08:52]}
{[%emt 00:00:01]} 27. f4 {[%emt 00:00:07]} Nd6 {[%clk 00:08:30]} {[%emt
00:00:22]} 28. Bf1 {[%clk 00:11:23]} {[%emt 00:00:30]} Ke7 {[%clk 00:08:03]}
{[%emt 00:00:32]} 29. Bd3 {[%clk 00:10:44]} {[%emt 00:00:44]} f5 {[%clk
00:07:46]} {[%emt 00:00:22]} 30. Bh4+ {[%clk 00:10:05]} {[%emt 00:00:44]} Kd7
{[%clk 00:07:38]} {[%emt 00:00:13]} 31. Bg5 {[%clk 00:10:02]} {[%emt 00:00:08]}
Bf8 {[%clk 00:07:06]} {[%emt 00:00:37]} 32. f3 {[%clk 00:09:45]} {[%emt
00:00:22]} Ne8 {[%clk 00:06:25]} {[%emt 00:00:46]} 33. Kf2 {[%clk 00:09:33]}
{[%emt 00:00:17]} Bd6 {[%clk 00:05:41]} {[%emt 00:00:49]} 34. h4 {[%emt
00:01:21]} Ng7 {[%clk 00:05:15]} 35. Ke3 {[%clk 00:08:50]} {[%emt 00:00:02]}
Ke6 {[%emt 00:00:24]} 36. Bc2 {[%clk 00:08:22]} {[%emt 00:00:30]} Nh5 {[%clk
00:04:49]} {[%emt 00:00:15]} 37. Bd3 {[%clk 00:08:19]} {[%emt 00:00:07]} Bf8
{[%clk 00:04:32]} {[%emt 00:00:22]} 38. Ba6 {[%clk 00:06:36]} {[%emt 00:01:49]}
Kd7 {[%clk 00:04:28]} {[%emt 00:00:09]} 39. Bb7 {[%clk 00:06:15]} {[%emt
00:00:27]} Kc7 {[%clk 00:04:21]} {[%emt 00:00:12]} 40. Ba8 {[%clk 00:06:15]}
{[%emt 00:00:05]} h6 {[%clk 00:03:57]} {[%emt 00:00:28]} 41. Bd8+ {[%clk
00:06:09]} {[%emt 00:00:11]} Kxd8 {[%clk 00:04:01]} {[%emt 00:00:02]} 42. Bxc6
{[%clk 00:06:12]} {[%emt 00:00:01]} Nf6 {[%emt 00:00:30]} 0-1